bitfinex-derivatives/quotes_SOLF0:USTF0_20241016
["timestamp","ask_amount","ask_price","bid_price","bid_amount"]
[1729080904544,18.5809,156.23,156.16,6.9]
[1729080904738,15.38,156.23,156.16,6.9]
[1729080905051,3.2014,156.21,156.16,6.9]
[1729080905245,15.38,156.21,156.14,3.2027]
[1729080905450,15.38,156.21,156.11,17.7283]
[1729080905742,15.38,156.21,156.12,6.9]
[1729080905949,9.0706,156.22,156.13,15.38]
[1729080906347,3.2013,156.21,156.14,3.2026]
[1729080906548,15.38,156.21,156.12,6.9]
[1729080906953,15.38,156.19,156.1,6.9]
[1729080907857,3.2022,156.17,156.1,3.2035]
[1729080908152,15.38,156.17,156.08,6.9]
[1729080908350,15.38,156.17,156.11,3.2031]
[1729080908545,15.38,156.19,156.11,3.2031]
[1729080908751,2.2674,156.17,156.09,15.38]
[1729080908948,3.2025,156.15,156.09,25.4837]
[1729080909249,2.2674,156.17,156.09,25.4837]
[1729080909754,17.6474,156.17,156.07,15.38]
[1729080909958,15.38,156.13,156.02,20.18479233]
[1729080910165,15.38,156.13,156.05,6.9]
[1729080911268,3.2031,156.12,156.05,6.9]
[1729080912454,15.38,156.13,156.06,3.2043]
[1729080912653,18.583,156.13,156.06,3.2043]
[1729080912852,18.583,156.13,156.04,15.38]
[1729080912853,15.38,156.13,156.04,15.38]
[1729080913264,9.1674,156.17,156.04,15.38]
[1729080913265,15.38,156.15,156.04,15.38]
[1729080913550,3.2032,156.12,156.05,3.2044]
[1729080913755,15.38,156.13,156.04,6.9]
[1729080914145,3.2034,156.11,156.05,3.2045]
[1729080914454,15.38,156.13,156.05,3.2045]
[1729080914655,2.3756,156.1,156.04,6.9]
[1729080914961,15.38,156.09,156.01,6.9]
[1729080915162,15.38,156.09,156.0,6.9]
[1729080915359,3.204,156.08,156.02,3.205]
[1729080916353,3.2045,156.06,156.0,3.2055]
[1729080916959,5.3558,156.07,156.01,3.2053]
[1729080917156,2.1515,156.07,155.98,15.38]
[1729080917368,2.1515,156.07,156.01,15.38]
[1729080917950,2.1515,156.07,155.96,15.38]
[1729080917951,2.1515,156.07,155.99,15.38]
[1729080918148,2.1515,156.07,155.97,15.38]
[1729080918361,15.38,156.06,155.97,15.38]
[1729080918757,3.2049,156.04,155.98,3.206]
[1729080918955,15.38,156.06,155.98,3.206]
[1729080919456,3.2048,156.04,155.98,3.206]
[1729080920752,15.38,156.06,155.97,15.38]
[1729080921162,15.38,156.06,155.96,6.9]
[1729080921662,3.2051,156.03,155.98,3.2059]
[1729080921862,15.38,156.06,155.98,3.2059]
[1729080922068,15.38,156.06,156.0,3.2055]
[1729080922956,15.38,156.06,155.98,3.2058]
[1729080922957,3.205,156.03,155.98,3.2058]
[1729080924265,1.8952,156.05,155.97,15.38]
[1729080924662,2.1515,156.07,155.99,15.38]
[1729080925167,2.1515,156.07,156.02,3.2051]
[1729080925759,5.3556,156.07,156.02,3.2051]
[1729080926059,2.1515,156.07,156.0,6.9]
[1729080926262,2.3756,156.1,156.01,15.38]
[1729080926461,2.3756,156.1,156.03,15.38]
[1729080926654,2.3756,156.1,156.05,3.2044]
[1729080927266,3.2038,156.09,156.04,3.2046]
[1729080928070,3.204,156.08,156.03,3.2049]
[1729080928371,15.38,156.08,156.0,6.9]
[1729080929270,3.2043,156.07,156.02,3.205]
[1729080929569,15.38,156.08,156.0,6.9]
[1729080929754,15.38,156.08,156.02,3.205]
[1729080930365,15.38,156.06,155.97,15.38]
[1729080930558,3.2048,156.04,155.99,3.2057]
[1729080931465,3.2041,156.07,156.01,3.2052]
[1729080931772,3.2041,156.07,155.99,15.38]
[1729080931773,15.38,156.08,155.99,15.38]
[1729080931972,2.3756,156.1,156.01,15.38]
[1729080932564,3.2038,156.09,156.04,3.2047]
[1729080932769,2.3756,156.1,156.01,15.38]
[1729080933263,2.3756,156.1,156.02,3.2051]
[1729080933264,3.2041,156.08,156.02,3.2051]
[1729080934368,3.2044,156.06,156.01,3.2053]
[1729080934572,15.38,156.09,155.99,6.88]
[1729080934978,15.38,156.07,155.99,6.88]
[1729080935271,1.887,156.06,155.99,6.88]
[1729080935470,3.2048,156.04,155.99,10.0857]
[1729080936668,3.2047,156.05,155.99,10.0857]
[1729080936866,1.887,156.06,155.99,10.0857]
[1729080937769,1.887,156.06,155.99,3.2057]
[1729080937967,3.2051,156.03,155.97,3.2061]
[1729080938173,15.38,156.05,155.97,3.2061]
[1729080938670,3.2051,156.03,155.97,3.2061]
[1729080939767,3.2058,155.99,155.96,6.88]
[1729080939971,3.14370258,155.99,155.96,6.88]
[1729080940270,1.9941,156.02,155.96,6.88]
[1729080940673,5.18524018,156.02,155.96,6.88]
[1729080941474,3.2054,156.01,155.96,10.0863]
[1729080941969,3.2059,155.99,155.94,3.2067]
[1729080942169,6.43357995,155.99,155.94,3.2067]
[1729080942471,3.2059,155.99,155.94,3.2067]
[1729080942665,17.3741,156.02,155.92,22.26]
[1729080942874,3.2054,156.01,155.95,3.2065]
[1729080943077,5.12786632,156.02,155.94,15.38]
[1729080943371,5.12786632,156.02,155.96,15.38]
[1729080943876,1.9941,156.02,155.97,3.206]
[1729080944278,1.9941,156.02,155.96,15.38]
[1729080944776,1.9941,156.02,155.94,15.38]
[1729080945270,3.2055,156.01,155.96,3.2063]
[1729080947675,5.1994,156.02,155.96,3.2063]
[1729080947878,1.9941,156.02,155.96,3.2063]
[1729080948878,3.2057,156.0,155.95,3.2066]
[1729080949475,3.2057,156.0,155.94,6.88]
[1729080949476,1.9941,156.02,155.94,10.0867]
[1729080949675,17.3741,156.02,155.94,10.0867]
[1729080949878,17.3741,156.02,155.94,3.2067]
[1729080950082,3.2058,155.99,155.94,3.2067]
[1729080950886,15.38,156.0,155.9,15.38]
[1729080951081,3.2061,155.98,155.93,3.2069]
[1729080951579,3.2061,155.98,155.91,6.88]
[1729080951580,3.2059,155.99,155.91,6.88]
[1729080952678,3.2059,155.99,155.94,3.2068]
[1729080952873,8.8741,156.02,155.95,15.38]
[1729080953077,8.8741,156.02,155.95,18.5865]
[1729080953682,3.2055,156.01,155.95,18.5865]
[1729080954080,12.0793,156.02,155.91,6.88]
[1729080954284,12.0793,156.02,155.94,15.38]
[1729080954983,3.2054,156.01,155.96,3.2062]
[1729080955482,3.2054,156.01,155.94,15.38]
[1729080955683,3.2054,156.01,155.96,3.2063]
[1729080955882,1.9941,156.02,155.96,6.88]
[1729080956187,1.9941,156.02,155.96,22.26]
[1729080957479,1.9941,156.02,155.98,3.2059]
[1729080957681,1.9563,156.04,155.96,22.26]
[1729080957987,1.887,156.06,156.01,3.2052]
[1729080958687,3.7123,156.1,156.02,15.38]
[1729080959184,3.7123,156.1,156.05,3.2043]
[1729080959381,3.7123,156.1,156.02,15.38]
[1729080959583,1.8319,156.1,156.02,15.38]
[1729080959784,119.96180814,156.11,156.06,3.2042]
[1729080959985,2.0097,156.12,156.04,15.38]
[1729080960283,3.2024,156.16,156.1,3.2034]
[1729080960594,3.8567,156.17,156.09,6.84]
[1729080960785,2.0097,156.19,156.13,15.38]
[1729080961083,15.38,156.24,156.13,15.38]
[1729080961984,15.38,156.24,156.15,15.38]
[1729080962177,4.0326,156.26,156.19,15.38]
[1729080962378,15.38,156.31,156.21,15.38]
[1729080962591,22.22,156.33,156.23,3.2008]
[1729080962988,3.1994,156.31,156.23,3.2008]
[1729080963183,3.1994,156.31,156.22,6.84]
[1729080963379,3.1994,156.31,156.23,15.38]
[1729080963883,15.38,156.33,156.23,15.38]
[1729080964290,3.1993,156.31,156.24,3.2004]
[1729080966087,3.1994,156.3,156.24,3.2004]
[1729080966289,15.38,156.28,156.21,6.84]
[1729080966481,15.38,156.24,156.14,15.38]
[1729080966688,3.2009,156.23,156.15,6.84]
[1729080966891,15.38,156.24,156.14,15.38]
[1729080967095,15.38,156.22,156.13,6.84]
[1729080967293,18.5812,156.22,156.14,3.2025]
[1729080967595,15.38,156.22,156.13,6.84]
[1729080967795,3.8943,156.23,156.13,6.84]
[1729080967998,3.2013,156.21,156.14,10.0427]
[1729080968602,3.2011,156.22,156.15,3.2023]
[1729080969004,3.8943,156.23,156.15,3.2023]
[1729080969299,3.8943,156.23,156.14,10.0426]
[1729080969508,3.8943,156.23,156.14,6.84]
[1729080969697,24.6,156.21,156.11,6.84]
[1729080969895,24.6,156.19,156.11,6.84]
[1729080970796,3.2024,156.16,156.1,6.84]
[1729080971404,3.2027,156.15,156.08,3.2039]
[1729080971595,24.6,156.19,156.02,69.16]
[1729080971596,24.6,156.16,156.03,24.6]
[1729080971794,24.6,156.11,156.02,76.0]
[1729080972100,3.2041,156.08,156.02,6.84]
[1729080972399,24.6,156.11,156.02,6.84]
[1729080972604,1.9612,156.13,156.02,6.84]
[1729080972798,1.9612,156.13,156.05,3.2044]
[1729080973207,1.9612,156.13,156.06,3.2042]
[1729080973803,1.9612,156.13,156.08,3.2038]
[1729080974304,1.9612,156.13,156.09,3.2037]
[1729080974602,3.7131,156.14,156.06,24.6]
[1729080975099,6.9158,156.14,156.08,3.2037]
[1729080976106,6.9158,156.14,156.1,3.2033]
[1729080976107,1.848,156.14,156.1,3.2033]
[1729080976409,3.8334,156.18,156.09,24.6]
[1729080976611,3.8334,156.18,156.12,3.203]
[1729080977298,3.8334,156.18,156.09,27.8035]
[1729080977492,3.8334,156.18,156.07,6.84]
[1729080978106,3.203,156.13,156.07,10.0439]
[1729080978499,3.203,156.13,156.07,6.84]
[1729080978710,3.2036,156.1,156.05,3.2044]
[1729080979014,24.6,156.13,156.04,6.84]
[1729080979312,3.2035,156.1,156.03,10.0448]
[1729080979802,3.2035,156.1,156.03,6.84]
[1729080980314,1.8927,156.12,156.03,31.44]
[1729080980800,1.8927,156.12,156.07,3.2041]
[1729080981001,1.8927,156.12,156.03,31.44]
[1729080981406,1.8927,156.12,156.06,3.2043]
[1729080981606,5.0959,156.12,156.06,3.2043]
[1729080982508,1.8927,156.12,156.03,31.44]
[1729080982700,1.8927,156.12,156.07,3.2039]
[1729080984604,1.8927,156.12,156.03,31.44]
[1729080984806,5.0958,156.12,156.06,3.2043]
[1729080985406,1.8927,156.12,156.05,3.2044]
[1729080985607,1.8927,156.12,156.03,31.44]
[1729080986117,5.0958,156.12,156.06,3.2042]
[1729080987007,1.8927,156.12,156.03,34.6449]
[1729080987311,3.8334,156.18,156.06,24.6]
[1729080987502,3.8334,156.18,156.03,6.84]
[1729080987503,3.2023,156.16,156.09,24.6]
[1729080987710,3.2023,156.16,156.09,31.42]
[1729080988411,3.2023,156.16,156.1,3.2034]
[1729080988608,3.2025,156.15,156.1,3.2034]
[1729080989008,1.9155,156.17,156.11,3.2033]
[1729080989706,1.9155,156.17,156.12,3.2029]
[1729080990018,1.9155,156.17,156.09,31.42]
[1729080990208,3.2026,156.15,156.09,34.6235]
[1729080990410,1.9155,156.17,156.09,6.82]
[1729080990910,1.9155,156.17,156.06,6.82]
[1729080991100,24.6,156.15,156.06,6.82]
[1729080991305,24.6,156.13,156.01,24.6]
[1729080991502,24.6,156.13,156.02,6.82]
[1729080991702,24.6,156.13,156.03,6.82]
[1729080992103,24.6,156.13,156.05,3.2045]
[1729080993613,3.2037,156.1,156.05,3.2045]
[1729080994415,3.2038,156.09,156.04,10.0247]
[1729080994615,24.6,156.13,156.04,6.82]
[1729080994921,3.2037,156.1,156.05,3.2045]
[1729080995912,3.203,156.13,156.04,6.82]
[1729080996409,6.82,156.16,156.04,6.82]
[1729080996815,24.6,156.15,156.04,6.82]
[1729080997016,3.2032,156.12,156.05,3.2045]
[1729080997219,24.6,156.15,156.04,6.82]
[1729080997719,3.2032,156.12,156.06,3.2042]
[1729080998305,3.2028,156.14,156.09,3.2037]
[1729080998508,1.9155,156.17,156.09,6.82]
[1729081001721,3.203,156.13,156.09,6.82]
[1729081004124,3.203,156.13,156.09,10.0237]
[1729081005019,1.9155,156.17,156.09,6.82]
[1729081005620,3.2024,156.16,156.11,3.2031]
[1729081006019,3.2024,156.16,156.09,6.82]
[1729081006218,3.2024,156.16,156.12,3.203]
[1729081007321,1.9155,156.17,156.05,24.6]
[1729081007528,1.9155,156.17,156.05,6.82]
[1729081007821,3.2034,156.11,156.05,6.82]
[1729081008024,24.6,156.15,156.05,6.82]
[1729081008326,3.2043,156.07,155.98,24.6]
[1729081008518,24.6,156.13,155.99,6.82]
[1729081008913,24.6,156.13,156.03,3.2048]
[1729081009116,24.6,156.1,155.99,6.82]
[1729081009318,5.3908,156.09,156.01,3.2052]
[1729081009515,3.2045,156.06,156.01,3.2052]
[1729081010528,3.2048,156.04,155.99,3.2056]
[1729081010825,5.3908,156.09,155.99,6.82]
[1729081011124,3.2049,156.04,155.99,6.82]
[1729081011535,5.3908,156.09,155.99,6.82]
[1729081011833,3.2051,156.03,155.99,6.82]
[1729081012231,3.2047,156.05,155.96,3.2064]
[1729081012529,24.6,156.08,155.97,6.82]
[1729081012834,3.2053,156.02,155.96,10.0264]
[1729081013030,1.9641,156.01,155.96,10.0264]
[1729081013729,1.9641,156.01,155.94,6.82]
[1729081013933,1.893,156.0,155.94,6.82]
[1729081014132,5.0986,156.0,155.94,10.0266]
[1729081014330,1.893,156.0,155.92,6.82]
[1729081014727,3.2058,155.99,155.93,3.2068]
[1729081016133,3.2059,155.99,155.93,3.2068]
[1729081016841,8.713,156.0,155.89,6.82]
[1729081017237,3.2065,155.96,155.9,3.2075]
[1729081018126,3.2065,155.96,155.89,6.8]
[1729081018425,3.2067,155.95,155.89,6.8]
[1729081018736,3.2067,155.95,155.89,10.0078]
[1729081018927,3.2072,155.93,155.89,6.8]
[1729081020037,24.6,155.98,155.89,6.8]
[1729081020234,24.6,155.98,155.89,3.2078]
[1729081021135,24.6,155.98,155.88,3.2079]
[1729081021341,24.6,155.98,155.87,6.8]
[1729081021643,3.2074,155.92,155.87,10.0081]
[1729081022138,24.6,155.98,155.87,6.8]
[1729081022338,3.2064,155.96,155.9,3.2076]
[1729081022642,33.313,156.0,155.9,3.2076]
[1729081022836,3.2069,155.94,155.79,6.4194]
[1729081023040,28.2397,155.93,155.84,3.2087]
[1729081023239,35.0397,155.93,155.8,31.4]
[1729081023536,1.8516,155.92,155.8,31.4]
[1729081024351,24.6,155.9,155.8,6.8]
[1729081024846,3.2086,155.86,155.81,3.2094]
[1729081025142,6.8,155.88,155.8,6.8]
[1729081025542,6.8,155.89,155.77,24.6]
[1729081025739,6.8,155.89,155.77,31.4]
[1729081025935,3.2085,155.86,155.8,3.2096]
[1729081026141,6.8,155.89,155.77,24.6]
[1729081026345,1.8543,155.85,155.76,6.8]
[1729081026639,1.7165,155.84,155.76,6.8]
[1729081027342,4.9254,155.84,155.78,3.2101]
[1729081027641,1.7165,155.84,155.76,6.8]
[1729081027842,1.7165,155.84,155.77,24.6]
[1729081029045,1.7165,155.84,155.79,3.2097]
[1729081029339,1.8543,155.85,155.78,6.8]
[1729081029646,1.8543,155.85,155.8,3.2097]
[1729081030445,1.8543,155.85,155.82,3.2092]
[1729081030859,5.12506729,155.85,155.82,3.2092]
[1729081031052,3.27076729,155.85,155.8,24.6]
[1729081031351,1.7532,155.91,155.82,24.6]
[1729081031549,1.7532,155.91,155.83,6.8]
[1729081031756,3.21942087,155.91,155.87,24.6]
[1729081032054,28.1382,155.98,155.88,6.8]
[1729081032237,24.6,155.95,155.85,6.8]
[1729081032438,31.4,155.95,155.85,6.8]
[1729081032644,3.2072,155.92,155.85,10.0086]
[1729081032845,3.18219471,155.92,155.85,6.8]
[1729081033045,31.4,155.95,155.85,6.8]
[1729081033350,28.1382,155.98,155.85,6.8]
[1729081033543,10.3382,155.98,155.87,24.6]
[1729081033744,3.2066,155.95,155.89,3.2078]
[1729081033941,3.2066,155.95,155.85,6.8]
[1729081034151,34.9382,155.98,155.85,31.4]
[1729081034447,34.9382,155.98,155.9,3.2075]
[1729081034448,3.2063,155.97,155.9,3.2075]
[1729081034651,10.3382,155.98,155.85,31.4]
[1729081034849,13.5443,155.98,155.91,3.2073]
[1729081035244,6.7443,155.98,155.88,24.6]
[1729081035549,28.1382,155.98,155.85,24.6]
[1729081035851,24.6,155.93,155.85,6.8]
[1729081036055,1.8011,155.92,155.82,10.0092]
[1729081036352,3.208,155.89,155.82,6.8]
[1729081036746,3.208,155.89,155.81,6.8]
[1729081037445,3.208,155.89,155.83,3.2089]
[1729081038152,31.4293,155.91,155.85,3.2086]
[1729081038943,3.2076,155.9,155.84,3.2088]
[1729081039352,28.2218,155.91,155.81,6.8]
[1729081039753,3.6218,155.91,155.81,6.8]
[1729081039959,3.6218,155.91,155.82,1.17913789]
[1729081040462,3.6218,155.91,155.81,6.8]
[1729081040948,28.2218,155.91,155.81,6.8]
[1729081041144,24.6,155.88,155.81,6.8]
[1729081041345,3.2085,155.86,155.8,10.0095]
[1729081041541,3.2085,155.86,155.8,3.2095]
[1729081041944,3.2089,155.84,155.78,3.2099]
[1729081042145,3.2089,155.84,155.78,10.0099]
[1729081042346,24.6,155.86,155.78,6.8]
[1729081043253,24.6,155.86,155.79,3.2098]
[1729081043454,8.5657,155.9,155.78,6.8]
[1729081043455,24.6,155.88,155.78,6.8]
[1729081044164,24.6,155.86,155.78,6.8]
[1729081044753,24.6,155.86,155.74,69.24]
[1729081044956,24.6,155.86,155.75,6.8]
[1729081045247,3.2093,155.82,155.77,3.2101]
[1729081045455,24.6,155.86,155.77,3.2101]
[1729081045857,24.6,155.83,155.75,6.8]
[1729081046157,24.6,155.83,155.76,3.2104]
[1729081046555,3.2093,155.82,155.77,3.2103]
[1729081046864,24.6,155.86,155.75,6.8]
[1729081047254,24.6,155.86,155.77,3.2102]
[1729081047553,24.6,155.86,155.75,6.8]
[1729081047750,3.2094,155.82,155.76,3.2105]
[1729081048244,24.6,155.86,155.75,6.78]
[1729081048961,3.2091,155.83,155.77,3.2101]
[1729081049153,1.7657,155.9,155.75,6.78]
[1729081049453,3.2086,155.86,155.8,3.2095]
[1729081049660,24.6,155.88,155.8,3.2095]
[1729081049958,3.2083,155.87,155.82,3.2091]
[1729081050256,6.78,155.89,155.8,6.78]
[1729081050652,6.78,155.89,155.82,3.2092]
[1729081050653,3.2083,155.87,155.82,3.2092]
[1729081050964,6.78,155.89,155.8,6.78]
[1729081051357,26.3657,155.9,155.8,6.78]
[1729081051358,1.7657,155.9,155.8,6.78]
[1729081051556,3.6218,155.91,155.83,24.6]
[1729081051752,3.6218,155.91,155.87,3.2082]
[1729081052156,3.6218,155.91,155.85,6.78]
[1729081052361,1.7612,155.91,155.85,6.78]
[1729081052659,1.8514,155.96,155.85,6.78]
[1729081052660,1.8679,155.95,155.85,6.78]
[1729081052850,1.8679,155.95,155.88,3.2079]
[1729081053052,1.8679,155.95,155.85,6.78]
[1729081053251,26.4679,155.95,155.85,6.78]
[1729081053455,3.2075,155.91,155.85,6.78]
[1729081053964,26.4679,155.95,155.85,6.78]
[1729081053965,3.2077,155.9,155.85,6.78]
[1729081054261,1.8642,155.89,155.85,6.78]
[1729081055060,1.8642,155.94,155.85,6.78]
[1729081055956,1.8642,155.94,155.89,3.2078]
[1729081056164,1.8642,155.94,155.85,6.78]
[1729081056355,1.8642,155.94,155.88,3.2079]
[1729081057057,1.8642,155.94,155.85,6.78]
[1729081057058,1.8642,155.94,155.87,3.2082]
[1729081057257,1.8642,155.94,155.85,6.78]
[1729081057454,3.2077,155.9,155.83,3.2089]
[1729081057657,3.2077,155.9,155.85,6.78]
[1729081058063,1.8642,155.94,155.87,3.2081]
[1729081058266,1.8642,155.94,155.85,6.78]
[1729081058850,3.2077,155.9,155.85,6.78]
[1729081059057,24.6,155.91,155.85,6.78]
[1729081059255,24.6,155.91,155.82,6.78]
[1729081059552,27.8075,155.91,155.85,3.2086]
[1729081059757,1.8642,155.94,155.82,6.78]
[1729081060061,3.2072,155.92,155.86,3.2083]
[1729081060363,1.8642,155.94,155.82,6.78]
[1729081060565,1.8642,155.94,155.87,3.2081]
[1729081061160,3.2071,155.93,155.87,3.2081]
[1729081062662,3.2082,155.88,155.83,3.209]
[1729081062860,24.6,155.92,155.78,31.38]
[1729081063057,8.6442,155.94,155.79,1.17920914]
[1729081063357,5.0711,155.94,155.88,3.2079]
[1729081063761,1.8642,155.94,155.86,6.78]
[1729081063961,1.8642,155.94,155.89,3.2077]
[1729081064164,1.8642,155.94,155.86,6.78]
[1729081064565,5.0711,155.94,155.88,3.2079]
[1729081065368,1.8642,155.94,155.9,3.2075]
[1729081066265,1.8642,155.94,155.88,3.2079]
[1729081066465,1.8642,155.94,155.86,6.78]
[1729081067467,1.8642,155.94,155.9,3.2075]
[1729081067861,1.8642,155.94,155.86,6.78]
[1729081068669,5.071,155.94,155.88,3.2079]
[1729081068861,1.8642,155.94,155.88,3.2079]
[1729081069469,5.0711,155.94,155.88,3.2079]
[1729081070162,3.2077,155.9,155.84,3.2087]
[1729081070370,3.2077,155.9,155.85,6.78]
[1729081071366,3.2077,155.9,155.85,9.9886]
[1729081071769,3.2077,155.9,155.85,6.78]
[1729081071980,24.6,155.92,155.85,6.78]
[1729081071981,3.2078,155.89,155.85,6.78]
[1729081072363,24.6,155.92,155.84,3.2088]
[1729081072560,3.2078,155.9,155.84,9.9888]
[1729081072760,1.8642,155.94,155.84,6.78]
[1729081073076,1.8642,155.94,155.86,24.6]
[1729081073266,24.6,156.01,155.93,3.207]
[1729081073566,3.6005,156.0,155.92,6.78]
[1729081073771,3.6005,156.0,155.93,9.987]
[1729081074164,3.6005,156.0,155.93,6.78]
[1729081074165,3.206,155.98,155.93,6.78]
[1729081074361,3.6005,156.0,155.93,6.78]
[1729081074563,24.6,155.99,155.9,6.78]
[1729081074763,3.2067,155.95,155.9,6.78]
[1729081074970,24.6,155.99,155.9,9.9875]
[1729081075470,3.2065,155.96,155.9,9.9875]
[1729081075670,24.6,155.99,155.9,6.78]
[1729081075861,24.6,155.99,155.93,3.2068]
[1729081076065,27.8059,155.99,155.93,3.2068]
[1729081076267,24.6,155.99,155.9,6.78]
[1729081076572,3.2065,155.96,155.9,6.78]
[1729081077675,3.2065,155.96,155.9,9.9875]
[1729081078069,3.206,155.98,155.92,3.2071]
[1729081078265,3.6005,156.0,155.9,6.78]
[1729081078773,3.2061,155.98,155.92,3.2071]
[1729081079672,3.2059,155.99,155.93,3.2069]
[1729081079871,3.6005,156.0,155.9,6.78]
[1729081080169,24.6,155.98,155.9,6.78]
[1729081080375,24.6,155.96,155.85,69.28]
[1729081080567,3.2071,155.93,155.87,6.74]
[1729081080774,3.6468,155.92,155.87,6.74]
[1729081081173,3.2075,155.91,155.87,6.74]
[1729081081371,3.6468,155.92,155.87,6.74]
[1729081082181,6.8541,155.92,155.87,9.9482]
[1729081082879,3.2078,155.89,155.83,6.74]
[1729081083084,24.6,155.91,155.83,6.74]
[1729081083277,24.6,155.91,155.83,9.9489]
[1729081083470,3.208,155.88,155.83,9.9489]
[1729081083981,24.6,155.91,155.84,3.2087]
[1729081084576,3.6468,155.92,155.83,6.74]
[1729081085789,3.2075,155.91,155.85,3.2086]
[1729081085978,24.6,155.9,155.83,6.74]
[1729081086379,3.2084,155.86,155.8,6.74]
[1729081086583,1.8764,155.85,155.8,6.74]
[1729081087497,1.8764,155.85,155.82,3.2093]
[1729081088489,3.2079,155.89,155.84,3.2089]
[1729081088689,3.2079,155.89,155.8,6.74]
[1729081089189,3.2079,155.89,155.83,3.209]
[1729081089396,1.7521,155.9,155.8,6.74]
[1729081089785,1.7521,155.9,155.85,3.2085]
[1729081089981,1.7521,155.9,155.81,24.6]
[1729081090892,1.7521,155.9,155.89,3.2078]
[1729081091591,1.8625,155.92,155.89,3.2078]
[1729081092493,3.2074,155.91,155.86,6.74]
[1729081092687,3.2074,155.91,155.86,9.9484]
[1729081092888,1.8625,155.92,155.86,6.74]
[1729081093289,3.2078,155.9,155.86,6.74]
[1729081093502,1.8625,155.92,155.86,6.74]
[1729081093995,3.2078,155.9,155.86,6.74]
[1729081094297,3.2078,155.9,155.83,6.74]
[1729081094503,3.2078,155.9,155.85,3.2086]
[1729081094692,3.2084,155.87,155.77,69.26]
[1729081094888,1.8345,155.86,155.78,6.74]
[1729081095091,1.7076,155.85,155.78,6.74]
[1729081095295,4.9164,155.85,155.78,6.74]
[1729081095495,4.9164,155.85,155.79,3.2098]
[1729081095793,4.9164,155.85,155.79,9.9498]
[1729081096195,3.2091,155.83,155.78,3.2101]
[1729081096396,3.2091,155.83,155.77,76.0]
[1729081096596,26.3076,155.85,155.77,6.74]
[1729081097394,3.2095,155.82,155.77,6.74]
[1729081098197,1.7076,155.85,155.77,6.74]
[1729081098501,3.2091,155.83,155.77,9.9503]
[1729081099097,3.2094,155.82,155.76,3.2105]
[1729081099301,1.7076,155.85,155.76,6.74]
[1729081100204,3.2091,155.83,155.77,3.2101]
[1729081100500,1.7076,155.85,155.76,6.74]
[1729081100701,1.7076,155.85,155.81,3.2094]
[1729081100999,1.7076,155.85,155.79,24.6]
[1729081101192,1.8345,155.86,155.81,3.2094]
[1729081101391,1.8345,155.86,155.79,24.6]
[1729081102002,5.02130164,155.86,155.76,31.34]